{"text_format":"1","workbook":"xlsx","n_sheets":1,"sheets":["様式"],"not_rendered":{"charts":0,"images":0,"macros":1,"external_links":0,"defined_names":1,"comments":0,"pivot_tables":0},"unopened":[],"bounds":{"document_bytes":16777216,"sheet_cells":100000,"rows_first":2000,"rows_last":500,"rows_between":2000,"halvings":0,"cell_chars":16384,"cell_head_chars":4096},"cells_cut":0,"cells_raw":0,"read":"whole","date_system":"1900"}

{"sheet":"様式","index":0,"n_rows":178,"n_cols":24,"rows_kept":178,"cut":false,"hidden":false,"merged":[[8,9,8,10],[8,11,8,12],[14,3,14,4],[2,0,2,10],[3,15,5,16],[4,0,4,2],[4,3,4,9],[5,0,5,2],[5,3,5,9],[8,13,10,13],[9,5,10,6],[9,7,10,7],[9,8,10,8],[9,11,10,11],[9,12,10,12],[7,0,7,2],[7,4,7,6],[8,0,10,0],[8,1,10,1],[8,2,10,2],[8,3,8,4],[8,5,8,8],[11,13,14,13],[13,3,13,4],[13,5,14,5],[13,6,14,6],[13,7,14,7],[13,8,14,8],[13,11,14,11],[13,12,14,12],[11,0,14,0],[11,1,14,1],[11,2,14,2],[11,3,12,3],[11,4,12,4],[11,9,14,9],[11,10,14,10],[15,0,18,0],[15,1,18,1],[15,2,18,2],[15,13,18,13],[17,3,17,4],[17,5,18,5],[17,6,18,6],[17,7,18,7],[17,8,18,8],[17,11,18,11],[17,12,18,12],[18,3,18,4],[15,3,16,3],[15,4,16,4],[15,9,18,9],[15,10,18,10],[19,10,22,10],[24,9,24,10],[19,0,22,0],[19,1,22,1],[19,2,22,2],[19,13,22,13],[21,3,21,4],[21,5,22,5],[21,6,22,6],[21,7,22,7],[21,8,22,8],[21,11,22,11],[21,12,22,12],[22,3,22,4],[19,3,20,3],[19,4,20,4],[19,9,22,9],[24,11,24,12],[24,13,26,13],[25,5,26,6],[25,7,26,7],[25,8,26,8],[25,11,26,11],[25,12,26,12],[23,0,23,2],[23,4,23,6],[24,0,26,0],[24,1,26,1],[24,2,26,2],[24,3,24,4],[24,5,24,8],[27,13,30,13],[29,3,29,4],[29,5,30,5],[29,6,30,6],[29,7,30,7],[29,8,30,8],[29,11,30,11],[29,12,30,12],[27,0,30,0],[27,1,30,1],[27,2,30,2],[27,3,28,3],[27,4,28,4],[27,9,30,9],[27,10,30,10],[30,3,30,4],[31,0,34,0],[31,1,34,1],[31,2,34,2],[31,3,32,3],[31,4,32,4],[31,9,34,9],[33,12,34,12],[34,3,34,4],[31,10,34,10],[35,13,38,13],[37,3,37,4],[31,13,34,13],[33,3,33,4],[33,5,34,5],[33,6,34,6],[33,7,34,7],[33,8,34,8],[33,11,34,11],[37,5,38,5],[37,6,38,6],[37,7,38,7],[37,8,38,8],[37,11,38,11],[37,12,38,12],[38,3,38,4],[41,11,42,11],[41,12,42,12],[39,0,39,2],[39,4,39,6],[40,0,42,0],[40,1,42,1],[40,2,42,2],[40,3,40,4],[40,5,40,8],[40,9,40,10],[40,11,40,12],[47,0,50,0],[47,1,50,1],[47,2,50,2],[47,3,48,3],[47,4,48,4],[47,9,50,9],[47,10,50,10],[43,0,46,0],[43,1,46,1],[43,2,46,2],[35,0,38,0],[35,1,38,1],[35,2,38,2],[35,3,36,3],[35,4,36,4],[35,9,38,9],[35,10,38,10],[43,13,46,13],[45,3,45,4],[45,5,46,5],[45,6,46,6],[45,7,46,7],[45,8,46,8],[45,11,46,11],[45,12,46,12],[46,3,46,4],[43,3,44,3],[43,4,44,4],[43,9,46,9],[43,10,46,10],[40,13,42,13],[41,5,42,6],[41,7,42,7],[41,8,42,8],[47,13,50,13],[49,3,49,4],[49,5,50,5],[49,6,50,6],[49,7,50,7],[49,8,50,8],[49,11,50,11],[49,12,50,12],[50,3,50,4],[51,0,51,2],[51,4,51,6],[52,0,54,0],[52,1,54,1],[52,2,54,2],[52,3,52,4],[52,5,52,8],[52,9,52,10],[52,11,52,12],[52,13,54,13],[53,5,54,6],[53,7,54,7],[53,8,54,8],[53,11,54,11],[53,12,54,12],[55,13,58,13],[57,3,57,4],[57,5,58,5],[57,6,58,6],[57,7,58,7],[57,8,58,8],[57,11,58,11],[57,12,58,12],[58,3,58,4],[59,0,62,0],[59,1,62,1],[59,2,62,2],[59,3,60,3],[59,4,60,4],[59,9,62,9],[59,10,62,10],[63,13,66,13],[55,0,58,0],[55,1,58,1],[55,2,58,2],[55,3,56,3],[55,4,56,4],[55,9,58,9],[55,10,58,10],[59,13,62,13],[61,3,61,4],[61,5,62,5],[61,6,62,6],[61,7,62,7],[61,8,62,8],[61,11,62,11],[61,12,62,12],[62,3,62,4],[65,3,65,4],[65,5,66,5],[65,6,66,6],[65,7,66,7],[65,8,66,8],[65,11,66,11],[65,12,66,12],[66,3,66,4],[67,0,67,2],[67,4,67,6],[63,0,66,0],[63,1,66,1],[63,2,66,2],[63,3,64,3],[63,4,64,4],[63,9,66,9],[63,10,66,10],[68,0,70,0],[68,1,70,1],[68,2,70,2],[68,3,68,4],[68,5,68,8],[68,9,68,10],[68,11,68,12],[71,0,74,0],[71,1,74,1],[71,2,74,2],[71,3,72,3],[71,4,72,4],[71,9,74,9],[71,10,74,10],[68,13,70,13],[69,5,70,6],[69,7,70,7],[69,8,70,8],[69,11,70,11],[69,12,70,12],[71,13,74,13],[73,3,73,4],[73,5,74,5],[73,6,74,6],[73,7,74,7],[73,8,74,8],[73,11,74,11],[73,12,74,12],[74,3,74,4],[79,0,82,0],[79,1,82,1],[79,2,82,2],[79,3,80,3],[79,4,80,4],[79,9,82,9],[79,10,82,10],[75,13,78,13],[77,3,77,4],[77,5,78,5],[77,6,78,6],[77,7,78,7],[77,8,78,8],[77,11,78,11],[77,12,78,12],[78,3,78,4],[75,0,78,0],[75,1,78,1],[75,2,78,2],[75,3,76,3],[75,4,76,4],[75,9,78,9],[75,10,78,10],[79,13,82,13],[81,3,81,4],[81,5,82,5],[81,6,82,6],[81,7,82,7],[81,8,82,8],[81,11,82,11],[81,12,82,12],[82,3,82,4],[84,13,86,13],[85,5,86,6],[85,7,86,7],[85,8,86,8],[85,11,86,11],[85,12,86,12],[83,0,83,2],[83,4,83,6],[84,0,86,0],[84,1,86,1],[84,2,86,2],[84,3,84,4],[84,5,84,8],[84,9,84,10],[84,11,84,12],[91,0,94,0],[91,1,94,1],[91,2,94,2],[91,3,92,3],[91,4,92,4],[91,9,94,9],[91,10,94,10],[87,13,90,13],[89,3,89,4],[89,5,90,5],[89,6,90,6],[89,7,90,7],[89,8,90,8],[89,11,90,11],[89,12,90,12],[90,3,90,4],[87,0,90,0],[87,1,90,1],[87,2,90,2],[87,3,88,3],[87,4,88,4],[87,9,90,9],[87,10,90,10],[91,13,94,13],[93,3,93,4],[93,5,94,5],[93,6,94,6],[93,7,94,7],[93,8,94,8],[93,11,94,11],[93,12,94,12],[94,3,94,4],[95,13,98,13],[97,3,97,4],[97,5,98,5],[97,6,98,6],[97,7,98,7],[97,8,98,8],[97,11,98,11],[98,3,98,4],[95,0,98,0],[95,1,98,1],[95,2,98,2],[95,3,96,3],[95,4,96,4],[95,9,98,9],[95,10,98,10],[95,12,98,12],[99,0,99,2],[99,4,99,6],[100,0,102,0],[100,1,102,1],[100,2,102,2],[100,3,100,4],[100,5,100,8],[100,9,100,10],[100,11,100,12],[103,0,106,0],[103,1,106,1],[103,2,106,2],[103,3,104,3],[103,4,104,4],[103,9,106,9],[103,10,106,10],[100,13,102,13],[101,5,102,6],[101,7,102,7],[101,8,102,8],[101,11,102,11],[101,12,102,12],[103,13,106,13],[105,3,105,4],[105,5,106,5],[105,6,106,6],[105,7,106,7],[105,8,106,8],[105,11,106,11],[105,12,106,12],[106,3,106,4],[107,0,107,2],[107,4,107,6],[108,0,110,0],[108,1,110,1],[108,2,110,2],[108,3,108,4],[108,5,108,8],[108,9,108,10],[108,11,108,12],[111,0,114,0],[111,1,114,1],[111,2,114,2],[111,3,112,3],[111,4,112,4],[111,9,114,9],[111,10,114,10],[108,13,110,13],[109,5,110,6],[109,7,110,7],[109,8,110,8],[109,11,110,11],[109,12,110,12],[111,13,114,13],[113,3,113,4],[113,5,114,5],[113,6,114,6],[113,7,114,7],[113,8,114,8],[113,11,114,11],[113,12,114,12],[114,3,114,4]]}
[]
[null,null," "]
["主要事務事業戦略シート"]
[]
["局・区の使命",null,null,"こどもを産み育てたい、こどもがここで育ちたいと思うまち「ちば」の実現に向け、すべての子育て家庭への支援の充実と、すべての子ども・若者が健やかに成長できる環境の整備に取り組みます。"]
["事業選択・重点化・見直しの考え方",null,null,"子育て施策のニーズが多様化する中、待機児童対策及び子どもの家庭養育の推進を重点的に行うため、より効果が高い事業に行政資源をスライドさせる。\n重点化する事業：待機児童対策（保育所等の施設整備、保育の質の確保、保育士の確保等）、子どもルームの待機児童対策、児童相談所体制強化、家庭的養護の推進\n見直しする(予定）の事業：子どもルーム運営・整備事業(委託先の多様化、指導員処遇等）"]
[]
["施策",null,null,"2-2-1",{"$f":"IF(D8=\"\",\"←施策番号を選択してください。\",VLOOKUP(D8,W120:X178,2,1))","v":"子育て支援の充実"}]
["No.","新規","事務事業（業務）名","事務事業（業務）概要",null,"現状分析",null,null,null,"課題抽出",null,"今後の方向性",null,"所管課"]
[null,null,null,"目標（目的）","主な内容","事務事業（業務）に\n必要な行政資源",null,"コスト換算\n（単位：百万円）","行政コストの合計額\n（単位：百万円）","主な実績・効果","分析・評価","改善・改革の\n手法","今後の方向性"]
[null,null,null,"【（事務事業（業務）を行い）誰（何）が、どのような状態になることを目指すのか】","【サービス等の提供内容や提供先】",null,null,null,null,"【利用者数・件数等】","【現在どのような状態で、どのような課題があるのか】"]
["１",null,"子ども・子育て支援新制度給付対象施設の整備","待機児童を解消するために、千葉市こどもプラン等に基づき、計画的に施設等の整備行う。","民間保育園等の整備事業者に対し助成する。","ヒト","職員4.00人\n（正規4.00人）",21,{"$f":"SUM(H12:H15)","v":1089},"整備実績\n\n・民間保育園　新設13園\n・認定こども園　5園\n・小規模保育事業　18園\n・認可外保育施設の認可化　4園\n・事業所内保育事業　2園\n・家庭的保育事業　2園\n・その他の定員増等　11園\n\n（平成29年度）\n","3年連続で待機児童が発生したことを受け、即効性のある小規模保育所の新設も行うが、中長期的には少子化の進行は不可避であることから、既存施設を最大限活用した整備を基本とする必要がある。\n\n・H30.4.1待機児童数　8人(-40)、入所待ち417人（▲182)\n","⑧ その他","新たな施設整備は極力行わず、既存施設を最大限活用した整備を推進","幼保支援課"]
[null,null,null,null,null,"モノ","-","-","＜参考＞\n前年度決算額"]
[null,null,null,"他都市等の状況",null,"カネ","歳出予算額　1,068百万円\n（うち一般財源115百万円）",1068,"歳出決算額　824百万円（うち一般財源114百万円）"]
[null,null,null,"全指定都市及び県内市が実施"]
["２",null,"待機児童解消加速化プラン\n(認可移行予定認可外保育施設運営補助）\n","認可保育所への移行を計画する認可外保育施設に対し助成することにより、保育サービスの供給を増やし、待機児童の解消を図る。","認可基準を満たす見込みがあり、認可化を希望する認可外保育施設に対し、運営費を助成\n\n国の定める補助基準額（1施設当り13,448千円）","ヒト","職員1.05人\n（正規1.05人）",8,{"$f":"SUM(H16:H19)","v":257},"助成対象認可外施設\n25か所\n年間延入所児童数　7,058人\n\n（平成29年度）","平成27年度に16か所、平成28年度に10か所、平成29年度に11か所、平成30年度に6件が認可外から認可化しており、移行が進んでいる。","⑧ その他","平成３１年４月までに認可施設に移行するよう指導する。","幼保運営課"]
[null,null,null,null,null,"モノ","-","-","＜参考＞\n前年度決算額"]
[null,null,null,"他都市等の状況",null,"カネ","歳出予算額　249百万円\n（うち一般財源　98百万円）",249,"歳出決算額　353百万円（うち一般財源107百万円）"]
[null,null,null,"他政令市１2市が実施"]
["３",null,"民間保育園等給付・助成","民間保育施設の安定的な運営及び保育の質を確保し、サービスの充実を図る。","民間保育園等を対象に実施\n・子ども子育て支援法に基づく給付\n・運営費の助成\n","ヒト","職員31.425人\n（正規20.525人、非常勤嘱託8.9人、非常勤職員2.0人）",191,{"$f":"SUM(H20:H23)","v":19765},"給付・補助対象施設数\n・民間保育園103か所\n・認定こども園20か所\n・幼稚園1か所\n・小規模保育38か所\n・事業所内9か所\n・家庭的保育5か所\n\n年間延入所児童数：\n129,827人\n\n（平成29年度）\n","・子ども・子育て新制度の施行により国・県負担による給付額が増額され、市費負担が減少した。\n・補助金については、保育サービスの充実の観点からあり方を検討するとともに、市保育士ＯＢによる巡回指導を強化し、保育の質の確保を図る。\n\n給付・補助対象施設数\n・民間保育園118か所\n・認定こども園26か所\n・民間幼稚園1か所\n・小規模保育55か所\n・事業所内11か所\n・家庭的保育7か所\n年間延入所児童数：\n156,718人\n（平成30年度予算ベース）\n\nと増加しており、今後も保育需要は伸びる見込みで事業の必要性は高い。","⑤ 連携・協働","保育系短大等との連携により、保育の質の確保を図る。","幼保運営課"]
[null,null,null,null,null,"モノ","-","-","＜参考＞\n前年度決算額",null,null,"⑧ その他","国の給付・補助体系の変更等に応じ、補助メニューを適宜見直す。"]
[null,null,null,"他都市等の状況",null,"カネ","歳出予算額　19,603百万円\n（うち一般財源6,971百万円）",{"$f":"19603-29","v":19574},"歳出決算額　15,482百万円\n（うち一般財源5,302百万円）"]
[null,null,null,"全政令市で実施\n近隣政令市の１施設当たりの給付・補助平均額は、\n109百万円"]
["施策",null,null,"2-2-1",{"$f":"IF(D24=\"\",\"←施策番号を選択してください。\",VLOOKUP(D24,W120:X194,2,1))","v":"子育て支援の充実"}]
["No.","新規","事務事業（業務）名","事務事業（業務）概要",null,"現状分析",null,null,null,"課題抽出",null,"今後の方向性",null,"所管課"]
[null,null,null,"目標（目的）","主な内容","事務事業（業務）に\n必要な行政資源",null,"コスト換算\n（単位：百万円）","行政コストの合計額\n（単位：百万円）","主な実績・効果","分析・評価","改善・改革の\n手法","今後の方向性"]
[null,null,null,"【（事務事業（業務）を行い）誰（何）が、どのような状態になることを目指すのか】","【サービス等の提供内容や提供先】",null,null,null,null,"【利用者数・件数等】","【現在どのような状態で、どのような課題があるのか】"]
["４",null,"公立保育所等管理運営","公立保育所・認定こども園の安定的な運営を確保し、保育サービスの充実を図る。","保育の提供","ヒト","職員　1615.875人\n(正規　977.875人、非常勤638人)",8274,{"$f":"SUM(H28:H31)","v":10862},"年間延入所児童数：\n82,106人\n(平成29年度）","平成30年4月時点で約6,500人が公立保育所に在籍しており、適切な管理運営を行い、良好な保育環境で質の高い保育を提供する必要がある。\n\n増加する民間保育施設に対するノウハウの提供等、公立施設としての役割を果たす必要がある。\n\n老朽化した緑町保育所と大森保育所は、民設民営で建替える。（31.4開園）","⑤ 連携・協働","保育系短大等との連携により、保育の質の確保を図る。","幼保支援課\n幼保運営課"]
[null,null,null,null,null,"モノ","保育所等　59か所",0,"＜参考＞\n前年度決算額",null,null,"⑧ その他","緑町・大森保育所の円滑な移管を進める。\nまた、「公立保育所の施設改善に関する基本方針」における建替え対象６か所のうち、残り３か所の建替え方策を検討する。"]
[null,null,null,"他都市等の状況",null,"カネ","歳出予算額　3,567百万円\n（うち一般財源2,591百万円）\n【主なもの】\n非常勤職員賃金1,027百万円\n賄材料費　 613百万円",{"$f":"3567-979","v":2588},"歳出決算額　2,700百万円\n（うち一般財源2,044百万円）"]
[null,null,null,"他政令市の公立施設数\n平均48施設"]
["５",null,"私立幼稚園就園奨励費補助","本市在住の私立幼稚園児の入園料・保育料を減免し、保護者の経済的負担の軽減を図る。","園児の保護者に対して助成する。\n\n国庫補助事業分：62,200～308,000円/年\n（所得制限あり）\n\n市単独補助事業分：15,000～28,000円/年\n（所得制限なし）","ヒト","職員　1.55人\n（正規0.55人、非常勤1.00人）",5,{"$f":"SUM(H32:H35)","v":1505},"補助対象者数：\n11,696人\n（平成29年度）\n","保護者の経済的負担軽減に大きく寄与している。\n\n補助対象者数及び補助対象園数が多く、事務負担が大きいが、非常勤職員の有効活用により、業務の効率化を図っている。",null,null,"幼保支援課"]
[null,null,null,null,null,"モノ","-","-","＜参考＞\n前年度決算額"]
[null,null,null,"他都市等の状況",null,"カネ","歳出予算額　1,500百万円\n（うち一般財源1,089百万円）",1500,"歳出決算額　1,506百万円（うち一般財源1,097百万円）"]
[null,null,null,"概ね全ての市町村で実施"]
["６",null,"私立幼稚園教材費補助","私立幼稚園における教材費購入費用に対する補助金を交付し、幼稚園教育の振興と保護者負担軽減を図る。","補助基準額\n園割額：344千円\n園児割額：1千円\n預かり保育加算：\n150～300千円（年間延べ利用人数に応じて補助額を加算）","ヒト","職員　0.10人\n（正規　0.10人）",1,{"$f":"SUM(H36:H39)","v":54},"補助対象園：74園\n（平成29年度）\n\n","・教材費に係る園の負担軽減により、市内全園の教育の質の向上に寄与している。\n\n・教育の質のさらなる向上を図るため、補助制度の拡充が求められている。\n\n",null,null,"幼保支援課"]
[null,null,null,null,null,"モノ","-","-","＜参考＞\n前年度決算額"]
[null,null,null,"他都市等の状況",null,"カネ","歳出予算額　53百万円\n（うち一般財源53百万円）",53,"歳出決算額　56百万円（うち一般財源56百万円）"]
[null,null,null,"他政令市13市が教材費に対する補助実施\n（Ｈ29時点）\n※補助対象を教材費に限定しない制度を含む。\n"]
["施策",null,null,"2-2-1",{"$f":"IF(D40=\"\",\"←施策番号を選択してください。\",VLOOKUP(D40,W120:X210,2,1))","v":"子育て支援の充実"}]
["No.","新規","事務事業（業務）名","事務事業（業務）概要",null,"現状分析",null,null,null,"課題抽出",null,"今後の方向性",null,"所管課"]
[null,null,null,"目標（目的）","主な内容","事務事業（業務）に\n必要な行政資源",null,"コスト換算\n（単位：百万円）","行政コストの合計額\n（単位：百万円）","主な実績・効果","分析・評価","改善・改革の\n手法","今後の方向性"]
[null,null,null,"【（事務事業（業務）を行い）誰（何）が、どのような状態になることを目指すのか】","【サービス等の提供内容や提供先】",null,null,null,null,"【利用者数・件数等】","【現在どのような状態で、どのような課題があるのか】"]
["７",null,"子どもルーム運営・整備","就労等により昼間家庭に保護者のいない児童の健全育成を図る。","授業が終わった後の遊び及び生活の場を提供する。","ヒト","職員13.35人\n（正規6.55人、区5.00人、非常勤1.80人）",91497,{"$f":"SUM(H44:H47)","v":94641},"年間利用児童数\n108,316人\n（平成29年度）\n\n開設数\n106小学校区166か所\n（平成30年4月1日時点）\n（放課後子ども教室との一体型を含めると107小学校区167か所）","就労等により昼間家庭に保護者のいない児童の放課後の遊び及び生活の場として寄与しているが、児童数の多い小学校では利用児童数も多く、待機児童が発生している。\n\n受入れ学年の拡大に伴い、必要に応じて高学年ルームの整備を進めるとともに、低学年の待機児童対策のため、子どもルーム整備を引続き検討する必要がある。","④ アウトソーシング","委託先の多様化は一体型を基本とし、教育委員会と調整していく。\nなお、将来的な一体型への移行を視野に入れ、社会福祉協議会以外の民間事業者への委託を拡大する。","健全育成課"]
[null,null,null,null,null,"モノ","子どもルーム　7７か所　　　　　　　　　　　　　　　　　　　　　　　　　　　　　　　　　　　　　　　　　　　　　　　　　　　　　　　　　　　　　　　　　　　　　　　　　　　　　　　　　　　　　　　　　　　　　　　　　　　　　　　　　　　　　　　　　　　　　　　　　　　　　　　　　　（うち教室1７か所、建物６０か所）　　　　　　　　　　　　　　　　　　　　　　　　　　　　　　　　　　　　　　　　　　　　　　　　　　　　　　　　　　　　　　　　　　　　　　　　　　　　　　　　　　　　　　　　　　　　　　　　　　　　　　　　　　　　　　　　　　　　　　　　　　　　　　　　　　　　　　　　　　　　　　　　　　　　　　　　　　　　　　　　　　　　　　　　　　　　　　　　　　　　　　　　　　　　　　　　　　　　　　　　　　　　　　　　　　　　　　　　　　　　　　　　　　　　　　　　　　　　　　　",84,"＜参考＞\n前年度決算額",null,null,"⑦ 資産活用","校外賃借（土地・建物）物件の校内移転を進める。"]
[null,null,null,"他都市等の状況",null,"カネ","歳出予算額3,064百万円\n（うち一般財源1,203百万円）\n【主なもの】\n委託料2,579百万円\n賃借料144百万円",3060,"歳出決算額　2,509百万円（うち一般財源962百万円）"]
[null,null,null,"【公設公営】（１市）\n福岡市\n【公設公営・民設民営】\n（２市）\n相模原市、広島市\n【公設民営】（５市）\n川崎市、静岡市、浜松市、堺市、北九州市\n【公設民営・民設民営】\n（９市）\n札幌市、仙台市、さいたま市、新潟市、名古屋市、京都市、神戸市、岡山市、熊本市\n【民設民営】（２市）\n横浜市、大阪市"]
["８",null,"病児・病後児保育","保護者が就労、疾病、冠婚葬祭などの理由で家庭での育児が困難な場合に、安心して児童を預け、就労等ができるようになる。\n\n","病気回復期などのため、他の児童との集団生活が困難な小学生までの児童に対し、市内８か所の医療機関に併設された施設で、病児保育を実施する。","ヒト","職員0.60人",5,{"$f":"SUM(H48:H51)","v":148},"年間延べ利用者数：6512人\n（平成29年度）","・病気・病児回復期の児童を対象とする保育は、市の施策で当該事業のみであり、ニーズは高い。\n\n・季節的な需要の変動や児童の病状の回復等による予約キャンセルなど、利用者数の変動が大きく、安定した経営が困難な状況で、新規開設医院がほとんどない。\n\n・市民ニーズの高い場所に施設を配置する必要から、効率性をあげることは難しいが、経営の安定を図るための施策を組むことなどにより、新規参入を促し、有効性の高い場所に施設を配置したい。","⑧ その他","多角的な視点から新規事業者の確保策を検討し、事業拡充を図る。","幼保支援課"]
[null,null,null,null,null,"モノ","-","-","＜参考＞\n前年度決算額"]
[null,null,null,"他都市等の状況",null,"カネ","歳出予算額143百万円\n（うち一般財源58百万円）",143,"歳出決算額　120百万円（うち一般財源49百万円）（H28）"]
[null,null,null,"全政令市で実施"]
["施策",null,null,"2-2-1",{"$f":"IF(D52=\"\",\"←施策番号を選択してください。\",VLOOKUP(D52,W120:X226,2,1))","v":"子育て支援の充実"}]
["No.","新規","事務事業（業務）名","事務事業（業務）概要",null,"現状分析",null,null,null,"課題抽出",null,"今後の方向性",null,"所管課"]
[null,null,null,"目標（目的）","主な内容","事務事業（業務）に\n必要な行政資源",null,"コスト換算\n（単位：百万円）","行政コストの合計額\n（単位：百万円）","主な実績・効果","分析・評価","改善・改革の\n手法","今後の方向性"]
[null,null,null,"【（事務事業（業務）を行い）誰（何）が、どのような状態になることを目指すのか】","【サービス等の提供内容や提供先】",null,null,null,null,"【利用者数・件数等】","【現在どのような状態で、どのような課題があるのか】"]
["９",null,"地域子育て支援拠点","小学校就学前までの児童とその保護者等に、子育ての不安・悩みなどの相談の場や、子育て親子の交流の場、子育てに関する専門的な支援を受ける場として利用してもらい、子育てを行う親の不安感や負担が解消・軽減されるようにする。\n","市内20か所（子育て支援館１、地域子育て支援センター７、子育てリラックス館12）で以下を実施\n\n・親子のふれあいの場・遊ぶ場の提供\n・子育てに関する相談\n・子育てサークルの育成・支援\n・子育て関連情報の提供、講習の実施\n※子育て支援館では、利用者支援やﾌｧﾐﾘｰ・ｻﾎﾟｰﾄ・ｾﾝﾀｰ事業も実施","ヒト","職員2.6人（正規0.6人、非常勤2.0人）",9,{"$f":"SUM(H56:H59)","v":271},"年間延べ利用者数：\n合計　264,686人\n\n子育て支援館\n67,847人\n地域子育て支援ｾﾝﾀｰ\n73,479人\n子育てリラックス館123,360人\n\n（平成29年度）\n","・こどもプランでは、31年度までに24カ所にする予定であるが、費用面で新規参入者が見込めない状況である。\n\n・新たに施設を設置したい場所に公共施設等の空きスペースが見つかった場合は、現在設置しているリラックス館について移転等を検討していく。","⑦ 資産活用","公共施設等の空きスペースの活用等を検討する。","幼保支援課"]
[null,null,null,null,null,"モノ","子育て支援館",16,"＜参考＞\n前年度決算額"]
[null,null,null,"他都市等の状況",null,"カネ","歳出予算額221百万円\n（うち一般財源99百万円）",246,"歳出決算額　210百万円（うち一般財源91百万円）"]
[null,null,null,"全政令市で実施"]
["１０",null,"子ども医療費助成","子どもが健康に育つとともに、その保護者が安心して子育てできるようになる。","中学校修了前の子どもを対象に、保険診療の範囲内での医療費自己負担額の一部または全額の助成","ヒト","職員12.09人\n（正規6.08人、非常勤6.01人）",53,{"$f":"SUM(H60:H63)","v":3224},"助成件数\n1,744,420件\n（平成29年度）","地方の財政力に応じてサービス水準に格差が生じることは望ましくないことから、本来、国が主体的に取り組むべきとものとして、国に対し本制度の創設を要望している。","⑥ ＩＣＴ活用","マイナンバー制度の独自利用事務を活用し、受給者の添付書類を省略することにより利便性を高める。","こども企画課"]
[null,null,null,null,null,"モノ","-","-","＜参考＞\n前年度決算額"]
[null,null,null,"他都市等の状況",null,"カネ","歳出予算額3,180百万円\n（一般財源　2,682百万円）\n【主なもの】\n扶助費：3,024百万円\n",3171,"歳出決算額　3,163百万円（うち一般財源2,668百万円）"]
[null,null,null,"全国の自治体で同様の事業を実施"]
["１１",null,"児童手当支給","家庭等における生活の安定に寄与するとともに、次代の社会を担う児童の健やかな成長に資することを目的とする。","中学校修了前の子どもに対し、児童1人当たり月額5,000円、10,000円または15,000円を支給","ヒト","職員21.10人\n（正規6.70人、非常勤14.40人）",70,{"$f":"SUM(H64:H67)","v":14345},"支給延べ児童数：1,373,728人\n（平成29年度）\n","各種申請をオンラインで受け付けるなど、ICTを活用する余地がある。\n","⑥ ＩＣＴ活用","マイナンバーカードを用いてオンライン申請を受け付けることができる「ぴったりサービス」の活用","こども企画課"]
[null,null,null,null,null,"モノ","-","-","＜参考＞\n前年度決算額"]
[null,null,null,"他都市等の状況",null,"カネ","歳出予算額14,297百万円\n（一般財源　2,217百万円）\n【主なもの】\n扶助費：14,240百万円",14275,"歳出決算額　14,382百万円（うち一般財源2,243百万円）"]
[null,null,null,"市町村の法定受託事務"]
["施策",null,null,"2-2-2",{"$f":"IF(D68=\"\",\"←施策番号を選択してください。\",VLOOKUP(D68,W120:X242,2,1))","v":"こどもの健全育成の推進"}]
["No.","新規","事務事業（業務）名","事務事業（業務）概要",null,"現状分析",null,null,null,"課題抽出",null,"今後の方向性",null,"所管課"]
[null,null,null,"目標（目的）","主な内容","事務事業（業務）に\n必要な行政資源",null,"コスト換算\n（単位：百万円）","行政コストの合計額\n（単位：百万円）","主な実績・効果","分析・評価","改善・改革の\n手法","今後の方向性"]
[null,null,null,"【（事務事業（業務）を行い）誰（何）が、どのような状態になることを目指すのか】","【サービス等の提供内容や提供先】",null,null,null,null,"【利用者数・件数等】","【現在どのような状態で、どのような課題があるのか】"]
["１２",null,"少年自然の家運営\n","・自然環境における宿泊を伴う集団生活及び体験活動を通じて、少年の健全な育成を図ることができる。\n・年間６万人の利用を見込んでいる。\n","利用者\n・小・中・特別支援学校\n・中学生までの子どもを含む少年団体・グループ・家族　など\n\n利用内容\n・宿泊を伴う集団生活\n・自然観察その他の自然に親しむ活動\n・環境に関する学習\n・野外活動、体育及びレクリエーション活動","ヒト","職員0.9人\n（正規0.9人）",7,{"$f":"SUM(H72:H75)","v":439},"・年間利用者数\n（29年度）　86,283人\n\n","・青少年の自然体験や宿泊体験、体験学習は、教育的価値が高く、青少年の健全育成に大きく寄与している。\n\n・事業運営業務や維持管理業務はＰＦＩ事業者が実施しているため、市職員及び専門業者のモニタリングにより常に事業実施状況等の監視・評価を行い、必要に応じて指導・勧告をする必要がある。\n\n・民間事業者のノウハウや資金の活用により、施設・設備の維持管理業務や事業運営業務が適切に実施されている。\n\n・現在のPFI特定事業契約が平成31年度に終了するため、次期管理形態を検討する必要がある。","④ アウトソーシング","次期事業手法については、PFIや指定管理者制度など、民間事業者のノウハウや資金を活用した形態を検討する。","健全育成課"]
[null,null,null,null,null,"モノ","少年自然の家　　",110,"＜参考＞\n前年度決算額"]
[null,null,null,"他都市等の状況",null,"カネ","歳出予算額836百万円\n（うち一般財源836百万円）\n【主なもの】\nサービス購入費320百万円\n公有財産購入費514百万円\nＰＦＩ事業モニタリング業務委託　2百万円",{"$f":"836-514","v":322},"歳出決算額　835百万円（うち一般財源835百万円）"]
[null,null,null,"類似施設をPFI事業により整備・運営する事例は極めて少なく、多くは指定管理者制度を導入して運営している。\n横浜市の「上郷・森の家」は、既存施設の改修・運営事業をPFI事業として選定し、平成30年6月に事業契約を締結する予定。\n栃木県の新青少年教育施設の整備については、PFIも含めた事業手法が検討されている。"]
["１３",null,"子ども交流館管理運営","子どもの健全な育成と交流を図るための居場所としての役割を果たす。","利用者\n主に高校生以下\n\n事業内容\n・子どもの健全な遊びと居場所の提供\n・子どもの健全な育成を目的とした講座等の開催\n・子どもの自主サークルその他の自主活動の支援\n・子どもの遊びと居場所づくりに関する情報の提供","ヒト","職員0.50人\n（正規0.50人）",4,{"$f":"SUM(H76:H79)","v":219},"延べ利用者数：156,967人\n（平成29年度）","・施設の広報活動、講座等が良好に運営されており、来館者数は過去最高だった平成２８年度を上回る１５６千人だった。\n\n・こども達にとって、心地が良い居場所となっており、本市のこども施策（こどものまちＣＢＴ、ワークショップ、フォーラム、児童福祉週間等）の実施において貢献している。\n\n・施設が、中央区に所在するため、中央区以外に在住する子どもの利用が比較的少なく、他区在住者のより一層の利用促進を図る必要がある。\n\n・無料施設であるが、受益者負担についても検討する必要がある。",null,null,"こども企画課"]
[null,null,null,null,null,"モノ","子ども交流館",73,"＜参考＞\n前年度決算額"]
[null,null,null,"他都市等の状況",null,"カネ","歳出予算額　142百万円\n（うち一般財源　142百万円）\n【主なもの】\n委託料：97百万円",142,"歳出決算額　134百万円（うち一般財源134百万円）"]
[null,null,null,"他政令市も概ね同種施設を設置"]
["１４",null,"母子家庭等医療費助成","ひとり親家庭等の父母等が健康を保ち、監護・養育する児童が健やかに成長ができるよう、経済的負担を軽減し、生活の安定と自立を支援する。","医療機関で受診した際に係る医療費の自己負担分の助成\n（保険診療の範囲内で全額助成）\n\n母子家庭の母と児童、\n父子家庭の父と児童、\n父母のいない家庭の\n児童とその養育者\n（配偶者がいない場合のみ）\n\n※児童が18歳に到達する年度末まで\n※所得制限あり","ヒト","職員3.96人\n（正規3.96人）",29,{"$f":"SUM(H80:H83)","v":246},"母子家庭等 5,406世帯\n助成件数　74,356件\n父子家庭　　　201世帯\n助成件数　　1,969件\n（平成29年度）\n\n","・ひとり親家庭や父母のいない児童が養育される家庭等の経済的負担を軽減し、生活の安定と自立を支援する施策として有効\n\n・現状の助成方法は、償還払いであり、対象者の利便性を図るため、現物給付化を目指しているが、県下一斉の実施でなければ、現物給付を実現できない状況である。\n","⑧ その他","本市単独での現物給付化は実現不可能なため、引き続き、県に対して現物給付化の要望をしていく。","こども家庭支援課"]
[null,null,null,null,null,"モノ","－","-","＜参考＞\n前年度決算額"]
[null,null,null,"他都市等の状況",null,"カネ","歳出予算額　217百万円\n（うち一般財源　217百万円）\n【主なもの】\n扶助費　215百万円",217,"歳出決算額　207百万円（うち一般財源　207百万円）"]
[null,null,null,"千葉県内市町村\n全政令指定都市で実施"]
["施策",null,null,"2-2-2",{"$f":"IF(D84=\"\",\"←施策番号を選択してください。\",VLOOKUP(D84,W120:X258,2,1))","v":"こどもの健全育成の推進"}]
["No.","新規","事務事業（業務）名","事務事業（業務）概要",null,"現状分析",null,null,null,"課題抽出",null,"今後の方向性",null,"所管課"]
[null,null,null,"目標（目的）","主な内容","事務事業（業務）に\n必要な行政資源",null,"コスト換算\n（単位：百万円）","行政コストの合計額\n（単位：百万円）","主な実績・効果","分析・評価","改善・改革の\n手法","今後の方向性"]
[null,null,null,"【（事務事業（業務）を行い）誰（何）が、どのような状態になることを目指すのか】","【サービス等の提供内容や提供先】",null,null,null,null,"【利用者数・件数等】","【現在どのような状態で、どのような課題があるのか】"]
["１５",null,"児童扶養手当支給","ひとり親家庭等の生活の安定と自立を助け、監護・養育する児童の心身ともに健やかな成長を支援する。\n","手当の支給\n（所得や監護・養育する児童の人数による。）\n\n母子家庭の母、\n父子家庭の父、\n養育者\n\n※所得制限あり","ヒト","職員5.79人\n（正規5.79人）",41,{"$f":"SUM(H88:H91)","v":2981},"延受給者数  73,758 人\n（平成29年度）\n\n","・ひとり親家庭や父母のいない児童が養育される家庭等の生活の安定と自立及び児童の福祉の促進を図る支援する施策として有効\n\n・毎年、現況の確認を要するため、提出書類の準備や窓口への来所が必要となるなど、対象者にとって、手続きによる負担がある。\nマイナンバー制度の活用等で、手続きの負担をどの程度まで軽減できるかが課題である。",null,null,"こども家庭支援課"]
[null,null,null,null,null,"モノ","－","-","＜参考＞\n前年度決算額"]
[null,null,null,"他都市等の状況",null,"カネ","歳出予算額　2,940百万円\n（うち一般財源　1,962百万円）\n【主なもの】\n扶助費　2,936百万円",2940,"歳出決算額　2,876百万円（うち一般財源　1,930百万円）"]
[null,null,null,"法律に基づく事業"]
["１６",null,"母子父子寡婦福祉資金貸付金","ひとり親家庭等の経済的自立を支援するとともに生活意欲を促進し、その扶養している児童の福祉を増進する。","事業開始資金、事業継続資金、修学資金、技能習得資金、就業資金、就職支度資金、医療介護資金、生活資金、住宅資金、転宅資金、就学支度資金、結婚資金の貸し付けを行う。\n\n配偶者のない女子で、現に児童（20歳未満）を扶養している母子家庭の母及び、配偶者のない男子で、現に子（20歳未満）を扶養している父子家庭の父並びにかつて母子家庭の母として児童を扶養していたことのある者（子が20歳以上）","ヒト","職員4.56人\n（正規0.60人、非常勤3.96人）",17,{"$f":"SUM(H92:H95)","v":338},"・母子福祉資金\n　355件／241,997千円\n\n・父子福祉資金\n　 14件／9,840千円\n\n・寡婦福祉資金\n　16件／12,089千円\n\n（平成29年度）\n\n","・ひとり親家庭や寡婦の方の経済的自立の支援策として有効\n\n・貸付金の回収率を高めるため、徴収員を平成25年度に設置したところ、徴収率が上がってきている。\n（平成29年度）\n現年度徴収率　82.1％\nのうち徴収員分　1.1％\n過年度徴収率　10.2％\nのうち徴収員分　6.2％\n\n・引き続き、滞納者・保証人への連絡を強化し、徴収率を上げていく必要がある。","⑧ その他","アウトソーシングによる債権回収の検討を行ったが、1回の債権額が少額のため、手数料などの経費が大きくなり、費用対効果の面で課題がある。\nほかに効果的な方法がないかを検討していく。","こども家庭支援課"]
[null,null,null,null,null,"モノ","－","-","＜参考＞\n前年度決算額"]
[null,null,null,"他都市等の状況",null,"カネ","歳出予算額　322百万円\n特別会計\n（一般会計から繰入金\n　22百万円）\n【主なもの】\n貸付金　315百万円",321,"歳出決算額　266百万円（うち一般財源　0円）"]
[null,null,null,"法律に基づく事業"]
["１７",null,"児童相談所管理運営","子ども本人、家族その他関係機関等からの相談に適切に対応し、子どもの安心・安全な生活を確保する。","18歳未満の児童や家庭等の様々な相談について、その内容に応じ、社会診断、心理診断及び一時保護等を行う。","ヒト","職員　77.52人\n（正規55.00人、非常勤22.52人）",513,{"$f":"SUM(H96:H99)","v":682},"相談受理件数　5,554件\n虐待対応件数　1,103件\n保護児童数　　　 255人\n平均保護日数　　37.9日\n里親等委託率　29．3％\n（平成29年度）\n","・虐待対応件数は前年度とほぼ同数であるが、虐待による一時保護人数は増加しており、法的対応を要する等対応困難事案も増えている。\n\n・国より「新たな社会的養育ビジョン」として、全年齢にわたって代替養育の方向が示され、里親委託率の目標値が修正（就学前の子どもについて７５％以上、それ以外については５０％以上）されたことに伴い、担い手確保と支援体制の強化が、これまで以上に求められている。併せて、新生児委託の推進を図るため、関係機関との連携が必要である。\n\n・一時保護児童の増加等に対応するため、ハード面、ソフト面ともに生活環境の改善が必要である。\n\n\n","⑤ 連携・協働","引き続き、法に定める配置基準に基づき、職員配置を進めるとともに、非常勤弁護士や警察ＯＢも配置する。また、法定研修等により、職員のスキルアップに取り組む。\n\n里親制度推進事業におけるＮＰＯとの協働事業について、見直しを行い、里親のリクルートから委託後支援までを包括的に実施する。\n\n一時保護児童の増加や、年齢に合わせた生活環境を整えるため、居室を増設する。","児童相談所"]
[null,null,null,null,null,"モノ","児童相談所\n（一時保護所含む）",39,"＜参考＞\n前年度決算額"]
[null,null,null,"他都市等の状況",null,"カネ","歳出予算額206百万円\n（うち一般財源145百万円）\n【主なもの】\n非常勤嘱託職員等人件費76百万円\n委託料83百万円",130,"歳出決算額　189百万円（うち一般財源 145百万円）"]
[null,null,null,"・一時保護所職員一人当たりの保護児童数（定員）\n2.6人で、政令市平均と比較し多い状況\n\n・里親推進：福岡市、静岡市等でＮＰＯ委託"]
["施策",null,null,"2-2-2",{"$f":"IF(D100=\"\",\"←施策番号を選択してください。\",VLOOKUP(D100,W120:X274,2,1))","v":"こどもの健全育成の推進"}]
["No.","新規","事務事業（業務）名","事務事業（業務）概要",null,"現状分析",null,null,null,"課題抽出",null,"今後の方向性",null,"所管課"]
[null,null,null,"目標（目的）","主な内容","事務事業（業務）に\n必要な行政資源",null,"コスト換算\n（単位：百万円）","行政コストの合計額\n（単位：百万円）","主な実績・効果","分析・評価","改善・改革の\n手法","今後の方向性"]
[null,null,null,"【（事務事業（業務）を行い）誰（何）が、どのような状態になることを目指すのか】","【サービス等の提供内容や提供先】",null,null,null,null,"【利用者数・件数等】","【現在どのような状態で、どのような課題があるのか】"]
["１８",null,"児童福祉施設等措置","社会的養護を必要とする児童等が安定した環境で生活し、自立できるよう支援する。","法に基づき保護を要する児童等の養護を児童福祉施設等に委託する。","ヒト","職員1.4人\n（正規1.4人）",10,{"$f":"SUM(H104:H107)","v":1066},"・母子生活支援施設\n延世帯数　　　284世帯\n・助産施設\n延人数　　　　　43人\n・児童養護施設\n延児童数　　1,370人\n・児童自立支援施設\n延児童数　　　56人\n・乳児院\n延児童数　　　175人\n・里親\n延児童数　　　403人\n・援助ホーム\n延児童数　　　68人\n・ファミリーホーム\n延児童数　　　140人\n（平成29年度）　　　","・平成２９年８月に発出された「新しい社会的養育ビジョン」により、代替養育としての里親委託率を大幅に引き上げる（未就学児は７年以内に75％、学童期以降は10年以内に50％）目標が示された。同時に、施設については「できるかぎり良好な家庭的環境」を目指し、小規模化、地域分散化、高度専門化を目指すこととされた。\n\n・代替養育を必要とする児童等が安定した環境で生活し、自立できるよう支援する施策として有効\n\n・より家庭的な生活がおくれるよう、里親・ファミリーホームへの委託の推進、施設の小規模化を図る。",null,null,"こども家庭支援課"]
[null,null,null,null,null,"モノ","－","-","＜参考＞\n前年度決算額"]
[null,null,null,"他都市等の状況",null,"カネ","歳出予算額　1,056百万円\n（うち一般財源　546万円）\n【主なもの】\n委託料　1,056百万円",1056,"歳出決算額　1,098百万円（うち一般財源587百万円）"]
[null,null,null,"法律に基づく事業"]
["施策",null,null,"3-1-3",{"$f":"IF(D108=\"\",\"←施策番号を選択してください。\",VLOOKUP(D108,W120:X282,2,1))","v":"こどもの参画の推進"}]
["No.","新規","事務事業（業務）名","事務事業（業務）概要",null,"現状分析",null,null,null,"課題抽出",null,"今後の方向性",null,"所管課"]
[null,null,null,"目標（目的）","主な内容","事務事業（業務）に\n必要な行政資源",null,"コスト換算\n（単位：百万円）","行政コストの合計額\n（単位：百万円）","主な実績・効果","分析・評価","改善・改革の\n手法","今後の方向性"]
[null,null,null,"【（事務事業（業務）を行い）誰（何）が、どのような状態になることを目指すのか】","【サービス等の提供内容や提供先】",null,null,null,null,"【利用者数・件数等】","【現在どのような状態で、どのような課題があるのか】"]
["１９",null,"こどもの参画推進","子どもの意見を市政やまちづくりに反映することにより、千葉市を活性化するとともに、子どもが将来的に市政やまちづくりに積極的に参画する大人へと成長する。","参画モデル事業として、以下を実施\n\n①「こども・若者の力ワークショップ」\n子どもを取り巻く様々な課題について、子ども、市民、専門家、行政がともに考え、市への提言をまとめる。\n②「こども・若者市役所」\n小学生から大学生くらいまでが集まり、こどもの目線で考えたまちづくりを実施\n③「こども・若者サミット」\n子どもの社会参画に積極的な首長を招き、パネルディスカッションを開催。また、上記①、②の成果を発表する場\n④「こどものまちCBT」\n子どもが自分たちで企画する”まち”を運営する。","ヒト","職員1.70人\n（正規1.70人）",16,{"$f":"SUM(H112:H115)","v":19},"参加者数\n①こども・若者の力ワークショップ\n　　延べ59人\n②こども・若者市役所\n　　延べ164人\n③こども・若者の力フォーラム\n　　222人\n④こどものまちCBT\n　　1,068人\n\n（平成29年度）","現在は、当課でモデル事業として実施しているこどもの参画事業を、全市（全庁及び地域）の自主的な実施へと展開していく必要がある。\n\n事業目的を達成するためには、より多くの子ども・若者の参画が必要となる。「こどもの参画事業」の全市展開のため、こどもの参画が可能な事業については、庁内他部局等が主体的に取り組めるように促す必要がある。","⑤ 連携・協働","こどもの参画「チェックシート」で、全庁のこどもの参画の取組み及び程度を把握し、全庁の主体的取組みを促す。","こども企画課"]
[null,null,null,null,null,"モノ","-","-","＜参考＞\n前年度決算額"]
[null,null,null,"他都市等の状況",null,"カネ","歳出予算額3百万円\n（うち一般財源　3百万円）\n【主なもの】\n委託料：3百万円",3,"歳出決算額　3百万円（うち一般財源3百万円）"]
[null,null,null,"定型的な事業でないため画一的な比較はできないが、多くの自治体でワークショップやこどものまちといったこどもの参画事業の取組を行っている。"]
[]
[]
[]
[]
[null,null,null,null,null,null,null,null,null,null,null,null,null,null,null,null,null,null,null,null,"① 調達改革",null,"1-1-1","緑と水辺の保全・活用"]
[null,null,null,null,null,null,null,null,null,null,null,null,null,null,null,null,null,null,null,null,"② 課題抑制",null,"1-1-2","やすらぎとにぎわいのある海辺の創出"]
[null,null,null,null,null,null,null,null,null,null,null,null,null,null,null,null,null,null,null,null,"③ 整理統合",null,"1-2-1","公園緑地の充実"]
[null,null,null,null,null,null,null,null,null,null,null,null,null,null,null,null,null,null,null,null,"④ アウトソーシング",null,"1-2-2","都市緑化の推進"]
[null,null,null,null,null,null,null,null,null,null,null,null,null,null,null,null,null,null,null,null,"⑤ 連携・協働",null,"1-2-3","花のあふれるまちづくりの推進"]
[null,null,null,null,null,null,null,null,null,null,null,null,null,null,null,null,null,null,null,null,"⑥ ＩＣＴ活用",null,"1-3-1","低炭素社会の実現に向けた取組みの推進"]
[null,null,null,null,null,null,null,null,null,null,null,null,null,null,null,null,null,null,null,null,"⑦ 資産活用",null,"1-3-2","循環型社会の実現に向けた取組みの推進"]
[null,null,null,null,null,null,null,null,null,null,null,null,null,null,null,null,null,null,null,null,"⑧ その他",null,"1-3-3","良好な生活環境の確保"]
[null,null,null,null,null,null,null,null,null,null,null,null,null,null,null,null,null,null,null,null,null,null,"1-3-3","環境保全・創造活動の推進"]
[null,null,null,null,null,null,null,null,null,null,null,null,null,null,null,null,null,null,null,null,null,null,"2-1-1","健康づくりの推進"]
[null,null,null,null,null,null,null,null,null,null,null,null,null,null,null,null,null,null,null,null,null,null,"2-1-2","医療体制の充実"]
[null,null,null,null,null,null,null,null,null,null,null,null,null,null,null,null,null,null,null,null,null,null,"2-1-3","食の安全と環境衛生の推進"]
[null,null,null,null,null,null,null,null,null,null,null,null,null,null,null,null,null,null,null,null,null,null,"2-2-1","子育て支援の充実"]
[null,null,null,null,null,null,null,null,null,null,null,null,null,null,null,null,null,null,null,null,null,null,"2-2-2","こどもの健全育成の推進"]
[null,null,null,null,null,null,null,null,null,null,null,null,null,null,null,null,null,null,null,null,null,null,"2-3-1","地域福祉の充実"]
[null,null,null,null,null,null,null,null,null,null,null,null,null,null,null,null,null,null,null,null,null,null,"2-4-1","介護予防と生きがいづくりの促進"]
[null,null,null,null,null,null,null,null,null,null,null,null,null,null,null,null,null,null,null,null,null,null,"2-4-2","地域生活支援の充実（高齢者）"]
[null,null,null,null,null,null,null,null,null,null,null,null,null,null,null,null,null,null,null,null,null,null,"2-4-3","介護保険サービスの充実"]
[null,null,null,null,null,null,null,null,null,null,null,null,null,null,null,null,null,null,null,null,null,null,"2-5-1","療育体制と相談支援の充実"]
[null,null,null,null,null,null,null,null,null,null,null,null,null,null,null,null,null,null,null,null,null,null,"2-5-2","地域生活支援の充実（障害のある人）"]
[null,null,null,null,null,null,null,null,null,null,null,null,null,null,null,null,null,null,null,null,null,null,"2-5-3","就労支援と社会参加の促進"]
[null,null,null,null,null,null,null,null,null,null,null,null,null,null,null,null,null,null,null,null,null,null,"3-1-1","学校教育の振興"]
[null,null,null,null,null,null,null,null,null,null,null,null,null,null,null,null,null,null,null,null,null,null,"3-1-2","地域の教育力の向上"]
[null,null,null,null,null,null,null,null,null,null,null,null,null,null,null,null,null,null,null,null,null,null,"3-1-3","こどもの参画の推進"]
[null,null,null,null,null,null,null,null,null,null,null,null,null,null,null,null,null,null,null,null,null,null,"3-2-1","生涯学習の推進"]
[null,null,null,null,null,null,null,null,null,null,null,null,null,null,null,null,null,null,null,null,null,null,"3-2-2","スポーツ・レクリエーション活動の推進"]
[null,null,null,null,null,null,null,null,null,null,null,null,null,null,null,null,null,null,null,null,null,null,"3-3-1","文化・芸術の振興"]
[null,null,null,null,null,null,null,null,null,null,null,null,null,null,null,null,null,null,null,null,null,null,"3-3-2","文化的財産の保全と活用"]
[null,null,null,null,null,null,null,null,null,null,null,null,null,null,null,null,null,null,null,null,null,null,"3-4-1","国際化の推進"]
[null,null,null,null,null,null,null,null,null,null,null,null,null,null,null,null,null,null,null,null,null,null,"3-4-2","大学・企業等との連携の推進"]
[null,null,null,null,null,null,null,null,null,null,null,null,null,null,null,null,null,null,null,null,null,null,"3-5-1","市民参加・協働の推進"]
[null,null,null,null,null,null,null,null,null,null,null,null,null,null,null,null,null,null,null,null,null,null,"3-5-2","男女共同参画の推進"]
[null,null,null,null,null,null,null,null,null,null,null,null,null,null,null,null,null,null,null,null,null,null,"4-1-1","防災対策の推進"]
[null,null,null,null,null,null,null,null,null,null,null,null,null,null,null,null,null,null,null,null,null,null,"4-1-2","防災体制の充実"]
[null,null,null,null,null,null,null,null,null,null,null,null,null,null,null,null,null,null,null,null,null,null,"4-1-3","消防・救急体制の充実"]
[null,null,null,null,null,null,null,null,null,null,null,null,null,null,null,null,null,null,null,null,null,null,"4-1-4","交通安全の推進"]
[null,null,null,null,null,null,null,null,null,null,null,null,null,null,null,null,null,null,null,null,null,null,"4-1-5","防犯対策の推進"]
[null,null,null,null,null,null,null,null,null,null,null,null,null,null,null,null,null,null,null,null,null,null,"4-1-6","消費生活の安定・向上"]
[null,null,null,null,null,null,null,null,null,null,null,null,null,null,null,null,null,null,null,null,null,null,"4-2-1","市街地の整備"]
[null,null,null,null,null,null,null,null,null,null,null,null,null,null,null,null,null,null,null,null,null,null,"4-2-2","計画的な土地利用の推進"]
[null,null,null,null,null,null,null,null,null,null,null,null,null,null,null,null,null,null,null,null,null,null,"4-2-3","良好な都市景観の形成"]
[null,null,null,null,null,null,null,null,null,null,null,null,null,null,null,null,null,null,null,null,null,null,"4-2-4","住宅・住環境の充実"]
[null,null,null,null,null,null,null,null,null,null,null,null,null,null,null,null,null,null,null,null,null,null,"4-2-5","生活基盤の充実"]
[null,null,null,null,null,null,null,null,null,null,null,null,null,null,null,null,null,null,null,null,null,null,"4-3-1","公共交通ネットワークの形成"]
[null,null,null,null,null,null,null,null,null,null,null,null,null,null,null,null,null,null,null,null,null,null,"4-3-2","道路ネットワークの形成"]
[null,null,null,null,null,null,null,null,null,null,null,null,null,null,null,null,null,null,null,null,null,null,"4-3-3","人にやさしい移動環境の創出"]
[null,null,null,null,null,null,null,null,null,null,null,null,null,null,null,null,null,null,null,null,null,null,"4-3-4","ＩＣＴを活かした利便性の向上"]
[null,null,null,null,null,null,null,null,null,null,null,null,null,null,null,null,null,null,null,null,null,null,"5-1-1","都心などの魅力向上"]
[null,null,null,null,null,null,null,null,null,null,null,null,null,null,null,null,null,null,null,null,null,null,"5-1-2","都市の国際性の向上"]
[null,null,null,null,null,null,null,null,null,null,null,null,null,null,null,null,null,null,null,null,null,null,"5-1-3","観光の振興と魅力の創出・発信"]
[null,null,null,null,null,null,null,null,null,null,null,null,null,null,null,null,null,null,null,null,null,null,"5-2-1","産業の振興"]
[null,null,null,null,null,null,null,null,null,null,null,null,null,null,null,null,null,null,null,null,null,null,"5-2-2","新事業の創出"]
[null,null,null,null,null,null,null,null,null,null,null,null,null,null,null,null,null,null,null,null,null,null,"5-2-3","商業・サービス産業の振興"]
[null,null,null,null,null,null,null,null,null,null,null,null,null,null,null,null,null,null,null,null,null,null,"5-2-4","物流・港湾機能の強化"]
[null,null,null,null,null,null,null,null,null,null,null,null,null,null,null,null,null,null,null,null,null,null,"5-2-5","勤労者の支援と雇用の創出"]
[null,null,null,null,null,null,null,null,null,null,null,null,null,null,null,null,null,null,null,null,null,null,"5-3-1","新鮮で安全・安心な農畜産物の安定供給"]
[null,null,null,null,null,null,null,null,null,null,null,null,null,null,null,null,null,null,null,null,null,null,"5-3-2","安定した農業経営体の育成"]
[null,null,null,null,null,null,null,null,null,null,null,null,null,null,null,null,null,null,null,null,null,null,"5-3-3","農村と森林の持つ多面的機能の活用"]
[null,null,null,null,null,null,null,null,null,null,null,null,null,null,null,null,null,null,null,null,null,null,"9-9-9","その他"]